fUSD/lending_fUSD_20250301
["ID","MTS","AMOUNT","RATE_DAILY","PERIOD"]
[354985709,1740856266977,-604.81,0.00026027,2]
[354985710,1740856266986,-593.14,0.00026027,2]
[354985711,1740856266997,-1270.91,0.00026027,2]
[354985712,1740856267007,-500.0,0.00026027,2]
[354985713,1740856267018,-500.0,0.00026027,2]
[354985714,1740856267028,-2237.39,0.00026027,2]
[354985715,1740856267038,-586.47,0.00026027,2]
[354985716,1740856267048,-547.79,0.00026027,2]
[354985717,1740856267057,-970.44,0.00026027,2]
[354985718,1740856267067,-500.0,0.00026027,2]
[354985719,1740856267077,-500.0,0.00026027,2]
[354985720,1740856267086,-976.15,0.00026027,2]
[354985721,1740856267097,-500.0,0.00026027,2]
[354985722,1740856267108,-500.0,0.00026027,2]
[354985723,1740856267118,-1242.5,0.00026027,2]
[354985724,1740856267128,-500.0,0.00026027,2]
[354985725,1740856267138,-1437.04,0.00026027,2]
[354985726,1740856267148,-812.04,0.00026027,2]
[354985727,1740856267157,-869.82,0.00026027,2]
[354985728,1740856267167,-806.75,0.00026027,2]
[354985729,1740856267177,-2822.69,0.00026027,2]
[354985730,1740856267187,-873.08,0.00026027,2]
[354985731,1740856267197,-1414.88,0.00026027,2]
[354985732,1740856267207,-500.0,0.00026027,2]
[354985733,1740856267218,-730.6,0.00026027,2]
[354985734,1740856267228,-500.0,0.00026027,2]
[354985735,1740856267238,-500.0,0.00026027,2]
[354985736,1740856267247,-500.0,0.00026027,2]
[354985737,1740856267257,-1890.73,0.00026027,2]
[354985738,1740856267267,-889.77,0.00026027,2]
[354985739,1740856267276,-907.91,0.00026027,2]
[354985740,1740856267287,-1114.97,0.00026027,2]
[354985741,1740856267297,-15462.04,0.00026027,2]
[354985742,1740856267307,-500.0,0.00026027,2]
[354985743,1740856267317,-1466.07,0.00026027,2]
[354985744,1740856267327,-500.0,0.00026027,2]
[354985745,1740856267337,-939.73,0.00026027,2]
[354985746,1740856267346,-500.0,0.00026027,2]
[354985747,1740856267357,-1121.02,0.00026027,2]
[354985748,1740856267366,-1074.69,0.00026027,2]
[354985749,1740856267376,-639.35,0.00026027,2]
[354985750,1740856267387,-504.15,0.00026027,2]
[354985751,1740856267397,-500.0,0.00026027,2]
[354985752,1740856267407,-500.0,0.00026027,2]
[354985753,1740856267417,-687.8,0.00026027,2]
[354985754,1740856267428,-500.0,0.00026027,2]
[354985755,1740856267443,-954.8,0.00026027,2]
[354985756,1740856267453,-500.0,0.00026027,2]
[354985757,1740856267462,-500.0,0.00026027,2]
[354985758,1740856267473,-594.86,0.00026027,2]
[354985759,1740856267483,-708.75,0.00026027,2]
[354985760,1740856267494,-909.23,0.00026027,2]
[354985761,1740856267504,-1993.28,0.00026027,2]
[354985762,1740856267515,-519.54,0.00026027,2]
[354985763,1740856267525,-500.0,0.00026027,2]
[354985764,1740856267535,-838.22,0.00026027,2]
[354985765,1740856267544,-500.0,0.00026027,120]
[354985766,1740856267554,-500.0,0.00026027,2]
[354985767,1740856267563,-537.25,0.00026027,2]
[354985768,1740856267573,-755.75,0.00026027,2]
[354985769,1740856267584,-692.09,0.00026027,2]
[354985770,1740856267594,-937.03,0.00026027,2]
[354985771,1740856267604,-2605.69,0.00026027,2]
[354985772,1740856267614,-500.0,0.00026027,2]
[354985773,1740856267623,-564.77,0.00026027,2]
[354985774,1740856267632,-1184.01,0.00026027,2]
[354985775,1740856267641,-551.31,0.00026027,2]
[354985776,1740856267651,-819.54,0.00026027,2]
[354985777,1740856267660,-520.8,0.00026027,2]
[354985778,1740856267669,-12176.22,0.00026027,2]
[354985779,1740856267679,-2100.69,0.00026027,2]
[354985780,1740856267689,-500.0,0.00026027,2]
[354985781,1740856267698,-500.0,0.00026027,2]
[354985782,1740856267708,-817.55,0.00026027,2]
[354985783,1740856267717,-500.0,0.00026027,2]
[354985784,1740856267727,-985.63,0.00026027,2]
[354985785,1740856267737,-500.0,0.00026027,2]
[354985786,1740856267746,-1030.34,0.00026027,2]
[354985787,1740856267755,-500.0,0.00026027,2]
[354985788,1740856267764,-500.0,0.00026027,2]
[354985789,1740856267774,-2166.07,0.00026027,2]
[354985790,1740856267783,-500.0,0.00026027,2]
[354985791,1740856267794,-906.42,0.00026027,2]
[354985792,1740856267803,-500.0,0.00026027,2]
[354985793,1740856267813,-500.0,0.00026027,2]
[354985794,1740856267823,-809.95,0.00026027,2]
[354985795,1740856267832,-982.03,0.00026027,2]
[354985796,1740856267842,-500.0,0.00026027,2]
[354985797,1740856267852,-500.0,0.00026027,2]
[354985798,1740856267862,-1295.8,0.00026027,2]
[354985799,1740856267872,-529.08,0.00026027,2]
[354985800,1740856267881,-3221.36,0.00026027,2]
[354985801,1740856267891,-985.14,0.00026027,2]
[354985802,1740856267902,-500.0,0.00026027,2]
[354985803,1740856267912,-752.49,0.00026027,2]
[354985804,1740856267921,-822.0,0.00026027,2]
[354985805,1740856267931,-933.97,0.00026027,2]
[354985806,1740856267941,-522.68,0.00026027,2]
[354985807,1740856267951,-708.76,0.00026027,2]
[354985808,1740856267961,-500.0,0.00026027,2]
[354985809,1740856267971,-500.0,0.00026027,2]
[354985810,1740856267981,-1029.3,0.00026027,2]
[354985811,1740856267991,-518.36,0.00026027,2]
[354985812,1740856268001,-500.0,0.00026027,2]
[354985813,1740856268011,-10408.95,0.00026027,2]
[354985814,1740856268021,-691.85,0.00026027,2]
[354985815,1740856268031,-667.94,0.00026027,2]
[354985816,1740856268042,-500.0,0.00026027,2]
[354985817,1740856268052,-500.0,0.00026027,2]
[354985818,1740856268062,-1204.62,0.00026027,2]
[354985819,1740856268072,-500.0,0.00026027,2]
[354985820,1740856268082,-500.0,0.00026027,2]
[354985821,1740856268092,-1522.19,0.00026027,2]
[354985822,1740856268102,-500.0,0.00026027,2]
[354985823,1740856268112,-500.0,0.00026027,2]
[354985824,1740856268123,-500.0,0.00026027,2]
[354985825,1740856268133,-500.0,0.00026027,2]
[354985826,1740856268143,-500.0,0.00026027,2]
[354985827,1740856268153,-500.0,0.00026027,2]
[354985828,1740856268163,-500.0,0.00026027,2]
[354985829,1740856268173,-645.19,0.00026027,2]
[354985830,1740856268183,-500.0,0.00026027,2]
[354985831,1740856268194,-500.0,0.00026027,2]
[354985832,1740856268204,-500.0,0.00026027,2]
[354985833,1740856268213,-651.2,0.00026027,2]
[354985834,1740856268223,-1449.79,0.00026027,2]
[354985835,1740856268232,-539.31248408,0.00026027,2]
[354985836,1740856268242,-500.0,0.00026027,2]
[354985837,1740856268252,-2292.81,0.00026027,2]
[354985838,1740856268262,-948.25,0.00026027,2]
[354985839,1740856268272,-500.0,0.00026027,2]
[354985840,1740856268282,-1664.15,0.00026027,2]
[354985841,1740856268291,-500.0,0.00026027,2]
[354985842,1740856268301,-500.0,0.00026027,2]
[354985843,1740856268310,-500.0,0.00026027,2]
[354985844,1740856268320,-902.78,0.00026027,2]
[354985845,1740856268330,-563.76,0.00026027,2]
[354985846,1740856268341,-646.84,0.00026027,2]
[354985847,1740856268351,-500.0,0.00026027,2]
[354985848,1740856268361,-618.01,0.00026027,2]
[354985849,1740856268371,-5190.55,0.00026027,2]
[354985850,1740856268381,-960.13,0.00026027,2]
[354985851,1740856268391,-500.0,0.00026027,2]
[354985852,1740856268402,-1609.53,0.00026027,2]
[354985853,1740856268412,-755.39,0.00026027,2]
[354985854,1740856268421,-500.0,0.00026027,2]
[354985855,1740856268433,-500.0,0.00026027,2]
[354985856,1740856268444,-651.25,0.00026027,2]
[354985857,1740856268454,-773.56,0.00026027,2]
[354985858,1740856268463,-182.79,0.00026112,2]
[354985859,1740856268474,-153.78,0.00026175,2]
[354985860,1740856268483,-2168.4405782,0.0002621,2]
[354985861,1740856268492,-644.77,0.00026299,2]
[354985862,1740856268502,-500.0,0.000263,60]
[354985863,1740856268512,-150.0,0.000263,2]
[354985864,1740856268522,-100000.0,0.00026301,6]
[354985865,1740856268531,-500.0,0.00026301,2]
[354985866,1740856268542,-500.0,0.00026301,2]
[354985867,1740856268551,-500.0,0.00026301,2]
[354985868,1740856268562,-500.0,0.00026301,2]
[354985869,1740856268571,-500.0,0.00026301,2]
[354985870,1740856268580,-500.0,0.00026301,2]
[354985871,1740856268589,-500.0,0.00026301,2]
[354985872,1740856268600,-500.0,0.00026301,2]
[354985873,1740856268610,-500.0,0.00026301,2]
[354985874,1740856268620,-500.0,0.00026301,2]
[354985875,1740856268629,-500.0,0.00026301,2]
[354985876,1740856268639,-595.1,0.00026301,2]
[354985877,1740856268650,-500.0,0.00026301,2]
[354985878,1740856268660,-500.0,0.00026301,2]
[354985879,1740856268670,-500.0,0.00026301,2]
[354985880,1740856268679,-688.77,0.00026301,2]
[354985881,1740856268689,-500.0,0.00026301,2]
[354985882,1740856268698,-500.0,0.00026301,2]
[354985883,1740856268708,-500.0,0.00026301,2]
[354985884,1740856268718,-500.0,0.00026301,2]
[354985885,1740856268727,-509.36,0.00026301,2]
[354985886,1740856268737,-623.3,0.00026301,2]
[354985887,1740856268747,-500.0,0.00026301,2]
[354985888,1740856268756,-631.28,0.00026301,2]
[354985889,1740856268766,-500.0,0.00026301,2]
[354985890,1740856268776,-500.0,0.00026301,2]
[354985891,1740856268785,-500.0,0.00026301,2]
[354985892,1740856268795,-500.0,0.00026301,2]
[354985893,1740856268804,-632.43,0.00026301,2]
[354985894,1740856268813,-604.44,0.00026301,2]
[354985895,1740856268823,-663.0,0.00026301,2]
[354985896,1740856268833,-1421.164967,0.00026301,2]
[354985897,1740856268842,-150.369306,0.00026301,2]
[354985898,1740856268852,-532.83,0.00026301,2]
[354985899,1740856268861,-500.0,0.00026301,2]
[354985900,1740856268870,-661.03,0.00026301,2]
[354985901,1740856268879,-500.0,0.00026301,2]
[354985902,1740856268890,-707.13,0.00026301,2]
[354985903,1740856268900,-1027.29,0.00026301,2]
[354985904,1740856268910,-500.0,0.00026301,2]
[354985905,1740856268919,-500.0,0.00026301,2]
[354985906,1740856268928,-500.0,0.00026301,2]
[354985907,1740856268938,-500.0,0.00026301,2]
[354985908,1740856268947,-500.0,0.00026301,2]
[354985909,1740856268957,-1254.33,0.00026301,2]
[354985910,1740856268966,-500.0,0.00026301,2]
[354985911,1740856268975,-500.0,0.00026301,2]
[354985912,1740856268986,-514.84,0.00026301,2]
[354985913,1740856268995,-500.0,0.00026301,2]
[354985914,1740856269005,-500.0,0.00026301,2]
[354985915,1740856269014,-500.0,0.00026301,2]
[354985916,1740856269023,-512.94,0.00026301,2]
[354985917,1740856269033,-500.0,0.00026301,2]
[354985918,1740856269042,-523.3,0.00026301,2]
[354985919,1740856269053,-1096.097519,0.00026301,2]
[354985920,1740856269062,-500.0,0.00026301,2]
[354985921,1740856269071,-571.6,0.00026301,2]
[354985922,1740856269081,-500.0,0.00026301,2]
[354985923,1740856269090,-500.0,0.00026301,2]
[354985924,1740856269100,-500.0,0.00026301,2]
[354985925,1740856269109,-704.75,0.00026301,2]
[354985926,1740856269119,-924.57,0.00026301,2]
[354985927,1740856269128,-820.53,0.00026301,2]
[354985928,1740856269137,-503.08,0.00026301,2]
[354985929,1740856269146,-550.72,0.00026301,2]
[354985930,1740856269155,-500.0,0.00026301,2]
[354985931,1740856269167,-500.0,0.00026301,2]
[354985932,1740856269176,-548.07,0.00026301,2]
[354985933,1740856269185,-500.0,0.00026301,2]
[354985934,1740856269195,-779.96,0.00026301,2]
[354985935,1740856269204,-500.0,0.00026301,2]
[354985936,1740856269214,-500.0,0.00026301,2]
[354985937,1740856269223,-500.0,0.00026301,2]
[354985938,1740856269233,-500.0,0.00026301,2]
[354985939,1740856269243,-500.0,0.00026301,2]
[354985940,1740856269252,-608.63354773,0.00026301,2]
[354985941,1740856269262,-504.27,0.00026301,2]
[354985942,1740856269271,-583.8,0.00026301,2]
[354985943,1740856269280,-500.0,0.00026301,2]
[354985944,1740856269290,-1171.62,0.00026301,2]
[354985945,1740856269299,-724.92,0.00026301,2]
[354985946,1740856269308,-500.0,0.00026301,2]
[354985947,1740856269318,-783.05,0.00026301,2]
[354985948,1740856269327,-500.0,0.00026301,2]
[354985949,1740856269337,-500.0,0.00026301,2]
[354985950,1740856269346,-500.0,0.00026301,2]
[354985951,1740856269356,-500.0,0.00026301,2]
[354985952,1740856269365,-500.0,0.00026301,2]
[354985953,1740856269374,-837.89,0.00026301,2]
[354985954,1740856269527,-500.0,0.00026301,2]
[354985955,1740856269558,-500.0,0.00026301,2]
[354985956,1740856269568,-639.560353,0.00026301,2]
[354985957,1740856269577,-523.38,0.00026301,2]
[354985958,1740856269587,-500.0,0.00026301,2]
[354985959,1740856269596,-926.76,0.00026301,2]
[354985960,1740856269605,-581.63,0.00026301,2]
[354985961,1740856269615,-512.3,0.00026301,2]
[354985962,1740856269624,-654.97,0.00026301,2]
[354985963,1740856269633,-2696.96,0.00026301,2]
[354985964,1740856269642,-601.97,0.00026301,2]
[354985965,1740856269651,-500.0,0.00026301,2]
[354985966,1740856269661,-500.0,0.00026301,2]
[354985967,1740856269671,-630.48,0.00026301,2]
[354985968,1740856269680,-500.0,0.00026301,2]
[354985969,1740856269689,-500.0,0.00026301,2]
[354985970,1740856269699,-500.0,0.00026301,2]
[354985971,1740856269712,-500.0,0.00026301,2]
[354985972,1740856269722,-500.0,0.00026301,2]
[354985973,1740856269731,-528.28,0.00026301,2]
[354985974,1740856269740,-500.0,0.00026301,2]
[354985975,1740856269750,-698.95,0.00026301,2]
[354985976,1740856269759,-500.0,0.00026301,2]
[354985977,1740856269769,-500.0,0.00026301,2]
[354985978,1740856269778,-500.0,0.00026301,2]
[354985979,1740856269788,-500.0,0.00026301,2]
[354985980,1740856269797,-500.0,0.00026301,2]
[354985981,1740856269807,-626.18,0.00026301,2]
[354985982,1740856269817,-500.0,0.00026301,2]
[354985983,1740856269826,-500.0,0.00026301,2]
[354985984,1740856269835,-500.0,0.00026301,2]
[354985985,1740856269845,-745.24,0.00026301,2]
[354985986,1740856269854,-500.0,0.00026301,2]
[354985987,1740856269863,-500.0,0.00026301,2]
[354985988,1740856269873,-500.0,0.00026301,2]
[354985989,1740856269882,-500.0,0.00026301,2]
[354985990,1740856269892,-588.75,0.00026301,2]
[354985991,1740856269902,-500.0,0.00026301,2]
[354985992,1740856269913,-504.35,0.00026301,2]
[354985993,1740856269922,-500.0,0.00026301,2]
[354985994,1740856269931,-500.0,0.00026301,2]
[354985995,1740856269941,-500.0,0.00026301,2]
[354985996,1740856269952,-500.0,0.00026301,2]
[354985997,1740856269961,-500.0,0.00026301,2]
[354985998,1740856269971,-976.77,0.00026301,2]
[354985999,1740856269980,-500.0,0.00026301,2]
[354986000,1740856269989,-574.0,0.00026301,2]
[354986001,1740856269999,-1503.56,0.00026301,2]
[354986002,1740856270008,-500.0,0.00026301,2]
[354986003,1740856270018,-791.94,0.00026301,2]
[354986004,1740856270028,-613.14,0.00026301,2]
[354986005,1740856270038,-500.0,0.00026301,2]
[354986006,1740856270047,-655.11,0.00026301,2]
[354986007,1740856270057,-500.0,0.00026301,2]
[354986008,1740856270067,-500.0,0.00026301,2]
[354986009,1740856270076,-500.0,0.00026301,2]
[354986010,1740856270086,-500.0,0.00026301,2]
[354986011,1740856270095,-500.0,0.00026301,2]
[354986012,1740856270104,-669.13,0.00026301,2]
[354986013,1740856270113,-500.0,0.00026301,2]
[354986014,1740856270123,-770.03,0.00026301,2]
[354986015,1740856270132,-500.0,0.00026301,2]
[354986016,1740856270141,-613.68,0.00026301,2]
[354986017,1740856270150,-500.0,0.00026301,2]
[354986018,1740856270161,-899.43,0.00026301,2]
[354986019,1740856270170,-500.0,0.00026301,2]
[354986020,1740856270180,-559.35,0.00026301,2]
[354986021,1740856270189,-865.2,0.00026301,2]
[354986022,1740856270199,-870.71,0.00026301,2]
[354986023,1740856270208,-500.0,0.00026301,2]
[354986024,1740856270217,-543.67,0.00026301,2]
[354986025,1740856270227,-1050.09,0.00026301,2]
[354986026,1740856270236,-500.0,0.00026301,2]
[354986027,1740856270245,-500.0,0.00026301,2]
[354986028,1740856270254,-640.07,0.00026301,2]
[354986029,1740856270264,-500.0,0.00026301,2]
[354986030,1740856270273,-500.0,0.00026301,2]
[354986031,1740856270282,-500.0,0.00026301,2]
[354986032,1740856270292,-634.84,0.00026301,2]
[354986033,1740856270301,-556.8,0.00026301,2]
[354986034,1740856270311,-515.04,0.00026301,2]
[354986035,1740856270320,-500.0,0.00026301,2]
[354986036,1740856270330,-3254.27,0.00026301,2]
[354986037,1740856270339,-500.0,0.00026301,2]
[354986038,1740856270349,-500.0,0.00026301,2]
[354986039,1740856270358,-500.0,0.00026301,2]
[354986040,1740856270368,-500.0,0.00026301,2]
[354986041,1740856270377,-500.0,0.00026301,2]
[354986042,1740856270387,-509.27,0.00026301,2]
[354986043,1740856270396,-500.0,0.00026301,2]
[354986044,1740856270406,-500.0,0.00026301,2]
[354986045,1740856270417,-500.0,0.00026301,2]
[354986046,1740856270429,-500.0,0.00026301,2]
[354986047,1740856270440,-633.96,0.00026301,2]
[354986048,1740856270449,-784.34,0.00026301,2]
[354986049,1740856270458,-7253.78,0.00026301,2]
[354986050,1740856270468,-949.8,0.00026301,2]
[354986051,1740856270479,-500.0,0.00026301,2]
[354986052,1740856270488,-1342.91,0.00026301,2]
[354986053,1740856270497,-641.56,0.00026301,2]
[354986054,1740856270508,-750.48,0.00026301,2]
[354986055,1740856270519,-500.0,0.00026301,2]
[354986056,1740856270528,-1234.68,0.00026301,2]
[354986057,1740856270538,-511.71,0.00026301,2]
[354986058,1740856270547,-604.81,0.00026301,2]
[354986059,1740856270557,-593.14,0.00026301,2]
[354986060,1740856270567,-1270.91,0.00026301,2]
[354986061,1740856270576,-500.0,0.00026301,2]
[354986062,1740856270586,-500.0,0.00026301,2]
[354986063,1740856270595,-2237.39,0.00026301,2]
[354986064,1740856270605,-586.47,0.00026301,2]
[354986065,1740856270614,-547.79,0.00026301,2]
[354986066,1740856270624,-970.44,0.00026301,2]
[354986067,1740856270633,-500.0,0.00026301,2]
[354986068,1740856270642,-500.0,0.00026301,2]
[354986069,1740856270651,-976.15,0.00026301,2]
[354986070,1740856270661,-500.0,0.00026301,2]
[354986071,1740856270670,-500.0,0.00026301,2]
[354986072,1740856270680,-1242.5,0.00026301,2]
[354986073,1740856270689,-500.0,0.00026301,2]
[354986074,1740856270698,-1437.04,0.00026301,2]
[354986075,1740856270707,-812.04,0.00026301,2]
[354986076,1740856270717,-869.82,0.00026301,2]
[354986077,1740856270726,-806.75,0.00026301,2]
[354986078,1740856270736,-2822.69,0.00026301,2]
[354986079,1740856270745,-873.08,0.00026301,2]
[354986080,1740856270755,-1414.88,0.00026301,2]
[354986081,1740856270765,-500.0,0.00026301,2]
[354986082,1740856270774,-730.6,0.00026301,2]
[354986083,1740856270783,-500.0,0.00026301,2]
[354986084,1740856270793,-500.0,0.00026301,2]
[354986085,1740856270802,-500.0,0.00026301,2]
[354986086,1740856270811,-1890.73,0.00026301,2]
[354986087,1740856270820,-889.77,0.00026301,2]
[354986088,1740856270829,-907.91,0.00026301,2]
[354986089,1740856270838,-1114.97,0.00026301,2]
[354986090,1740856270848,-15462.04,0.00026301,2]
[354986091,1740856270857,-500.0,0.00026301,2]
[354986092,1740856270867,-1466.07,0.00026301,2]
[354986093,1740856270876,-500.0,0.00026301,2]
[354986094,1740856270885,-939.73,0.00026301,2]
[354986095,1740856270896,-500.0,0.00026301,2]
[354986096,1740856270905,-1121.02,0.00026301,2]
[354986097,1740856270914,-1074.69,0.00026301,2]
[354986098,1740856270923,-639.35,0.00026301,2]
[354986099,1740856270932,-504.15,0.00026301,2]
[354986100,1740856270942,-500.0,0.00026301,2]
[354986101,1740856270951,-687.8,0.00026301,2]
[354986102,1740856270961,-500.0,0.00026301,2]
[354986103,1740856270971,-500.0,0.00026301,2]
[354986104,1740856270981,-954.8,0.00026301,2]
[354986105,1740856270990,-500.0,0.00026301,2]
[354986106,1740856270999,-500.0,0.00026301,2]
[354986107,1740856271009,-594.86,0.00026301,2]
[354986108,1740856271018,-909.23,0.00026301,2]
[354986109,1740856271028,-708.75,0.00026301,2]
[354986110,1740856271037,-1993.28,0.00026301,2]
[354986111,1740856271047,-519.54,0.00026301,2]
[354986112,1740856271056,-500.0,0.00026301,2]
[354986113,1740856271066,-838.22,0.00026301,2]
[354986114,1740856271076,-500.0,0.00026301,120]
[354986115,1740856271086,-500.0,0.00026301,2]
[354986116,1740856271095,-537.25,0.00026301,2]
[354986117,1740856271105,-755.75,0.00026301,2]
[354986118,1740856271115,-692.09,0.00026301,2]
[354986119,1740856271125,-937.03,0.00026301,2]
[354986120,1740856271134,-2605.69,0.00026301,2]
[354986121,1740856271144,-500.0,0.00026301,2]
[354986122,1740856271154,-564.77,0.00026301,2]
[354986123,1740856271164,-1184.01,0.00026301,2]
[354986124,1740856271173,-551.31,0.00026301,2]
[354986125,1740856271183,-819.54,0.00026301,2]
[354986126,1740856271192,-520.8,0.00026301,2]
[354986127,1740856271201,-12176.22,0.00026301,2]
[354986128,1740856271216,-2100.69,0.00026301,2]
[354986129,1740856271226,-500.0,0.00026301,2]
[354986130,1740856271235,-500.0,0.00026301,2]
[354986131,1740856271245,-817.55,0.00026301,2]
[354986132,1740856271255,-500.0,0.00026301,2]
[354986133,1740856271264,-985.63,0.00026301,2]
[354986134,1740856271274,-500.0,0.00026301,2]
[354986135,1740856271283,-1030.34,0.00026301,2]
[354986136,1740856271292,-500.0,0.00026301,2]
[354986137,1740856271302,-500.0,0.00026301,2]
[354986138,1740856271311,-2166.07,0.00026301,2]
[354986139,1740856271320,-500.0,0.00026301,2]
[354986140,1740856271329,-906.42,0.00026301,2]
[354986141,1740856271339,-500.0,0.00026301,2]
[354986142,1740856271349,-500.0,0.00026301,2]
[354986143,1740856271358,-809.95,0.00026301,2]
[354986144,1740856271368,-982.03,0.00026301,2]
[354986145,1740856271377,-500.0,0.00026301,2]
[354986146,1740856271387,-500.0,0.00026301,2]
[354986147,1740856271396,-1295.8,0.00026301,2]
[354986148,1740856271406,-3221.36,0.00026301,2]
[354986149,1740856271416,-529.08,0.00026301,2]
[354986150,1740856271425,-985.14,0.00026301,2]
[354986151,1740856271441,-500.0,0.00026301,2]
[354986152,1740856271451,-752.49,0.00026301,2]
[354986153,1740856271461,-822.0,0.00026301,2]
[354986154,1740856271471,-933.97,0.00026301,2]
[354986155,1740856271481,-522.68,0.00026301,2]
[354986156,1740856271491,-708.76,0.00026301,2]
[354986157,1740856271500,-500.0,0.00026301,2]
[354986158,1740856271511,-500.0,0.00026301,2]
[354986159,1740856271520,-1029.3,0.00026301,2]
[354986160,1740856271530,-518.36,0.00026301,2]
[354986161,1740856271540,-500.0,0.00026301,2]
[354986162,1740856271550,-10408.95,0.00026301,2]
[354986163,1740856271559,-691.85,0.00026301,2]
[354986164,1740856271569,-667.94,0.00026301,2]
[354986165,1740856271579,-500.0,0.00026301,2]
[354986166,1740856271589,-500.0,0.00026301,2]
[354986167,1740856271599,-1204.62,0.00026301,2]
[354986168,1740856271608,-500.0,0.00026301,2]
[354986169,1740856271618,-500.0,0.00026301,2]
[354986170,1740856271627,-1522.19,0.00026301,2]
[354986171,1740856271637,-500.0,0.00026301,2]
[354986172,1740856271646,-500.0,0.00026301,2]
[354986173,1740856271656,-500.0,0.00026301,2]
[354986174,1740856271666,-500.0,0.00026301,2]
[354986175,1740856271675,-500.0,0.00026301,2]
[354986176,1740856271684,-500.0,0.00026301,2]
[354986177,1740856271693,-500.0,0.00026301,2]
[354986178,1740856271703,-645.19,0.00026301,2]
[354986179,1740856271712,-500.0,0.00026301,2]
[354986180,1740856271722,-500.0,0.00026301,2]
[354986181,1740856271732,-500.0,0.00026301,2]
[354986182,1740856271741,-651.2,0.00026301,2]
[354986183,1740856271750,-1449.79,0.00026301,2]
[354986184,1740856271759,-500.0,0.00026301,2]
[354986185,1740856271769,-2292.81,0.00026301,2]
[354986186,1740856271778,-948.25,0.00026301,2]
[354986187,1740856271787,-500.0,0.00026301,2]
[354986188,1740856271798,-1664.15,0.00026301,2]
[354986189,1740856271807,-500.0,0.00026301,2]
[354986190,1740856271816,-500.0,0.00026301,2]
[354986191,1740856271825,-500.0,0.00026301,2]
[354986192,1740856271836,-902.78,0.00026301,2]
[354986193,1740856271845,-563.76,0.00026301,2]
[354986194,1740856271855,-646.84,0.00026301,2]
[354986195,1740856271864,-500.0,0.00026301,2]
[354986196,1740856271875,-618.01,0.00026301,2]
[354986197,1740856271884,-5190.55,0.00026301,2]
[354986198,1740856271894,-960.13,0.00026301,2]
[354986199,1740856271903,-500.0,0.00026301,2]
[354986200,1740856271913,-1609.53,0.00026301,2]
[354986201,1740856271923,-755.39,0.00026301,2]
[354986202,1740856271933,-500.0,0.00026301,2]
[354986203,1740856271943,-500.0,0.00026301,2]
[354986204,1740856271952,-651.25,0.00026301,2]
[354986205,1740856271961,-773.56,0.00026301,2]
[354986206,1740856271972,-441.0,0.00026301,2]
[354986207,1740856271981,-441.0,0.00026301,2]
[354986208,1740856271990,-495.9345497,0.0002631,2]